Cogmind - Beta 16.1 @@@ ROGUE MODE // 2026.02.14 @ 22:15:21 Player: Lintence Result: Destroyed by G-50 Soldier with Heavy Laser Performance ------------- Evolutions (4) 2000 Regions Visited (5) 1000 Robots Destroyed (39) 195 Value Destroyed (865) 865 Prototype IDs (5) 100 Alien Tech Used (0) 0 Bonus (208) 208 TOTAL SCORE: 4368 Bonus ------- Pacifist 200 High Alert Combat Kills 8 Cogmind --------- Core Integrity 0/850 Matter 295/300 Energy 100/100 System Corruption 0% Temperature Cool (9) Movement Core (150) Ox2 Location -6/Factory Parts ------- > --- POWER (1) -------- (None) > --- PROPULSION (7) --- (None) > --- UTILITY (5) ------ Hacking Suite > --- WEAPON (2) ------- Enhanced Force Lance > --- INVENTORY (5) ---- Triangulator Enhanced Optical Array Advanced ECM Suite System Shield Enhanced Force Lance Peak State ------------ > --- POWER ------------ Light Nuclear Core > --- PROPULSION ------- VTOL Module VTOL Module VTOL Module Improved Flight Unit Xenon Bombardment Thruster Xenon Bombardment Thruster Improved Cesium-ion Thruster > --- UTILITY ---------- Power Amplifier Hacking Suite Hacking Suite Improved Hacking Suite Improved Hacking Suite > --- WEAPON ----------- Axe Axe > --- INVENTORY -------- Light Deuterium Engine Improved Flight Unit Xenon Bombardment Thruster Xenon Bombardment Thruster Axe [Rating: 53] Favorites ----------- Power Deuterium Engine Engine Deuterium Engine Power Core Light Nuclear Core Propulsion VTOL Module Treads Light Treads Leg Aluminum Leg Flight Unit VTOL Module Utility Hacking Suite Device Improved Sensor Array Storage Small Storage Unit Processor Target Analyzer Hackware Hacking Suite Weapon Improved Assault Rifle Energy Gun Heavy Laser Ballistic Gun Improved Assault Rifle Launcher Rocket Launcher Impact Weapon Heavy Hammer Slashing Weapon Axe Piercing Weapon Enhanced Force Lance Build | -11 -10 -9 -8 -7 -6 ------- Run | Yrd Mat Mat Mat Fac Fac Slots Evolved 8 | . . 2 2 2 2 Power . | . . . . . . Propulsion 5 | . . 1 . 2 2 Utility 3 | . . 1 2 . . Weapon . | . . . . . . Parts Attached 62 | 6 . 23 5 12 16 Power 9 | 1 . 3 1 1 3 Engine 6 | 1 . 3 1 1 . Core 3 | . . . . . 3 Reactor . | . . . . . . Propulsion 22 | 2 . 6 2 6 6 Treads 1 | . . 1 . . . Leg 5 | 2 . 3 . . . Wheel . | . . . . . . Hover . | . . . . . . Flight 16 | . . 2 2 6 6 Utility 18 | 1 . 8 2 1 6 Device 4 | . . 1 . . 3 Storage 2 | 1 . 1 . . . Processor 4 | . . 3 1 . . Hackware 8 | . . 3 1 1 3 Protection . | . . . . . . Artifact . | . . . . . . Weapon 13 | 2 . 6 . 4 1 Energy Gun 3 | 1 . 1 . 1 . Energy Cannon . | . . . . . . Ballistic Gun 4 | 1 . 3 . . . Ballistic Cannon . | . . . . . . Launcher 1 | . . 1 . . . Special Weapon . | . . . . . . Impact Weapon 1 | . . 1 . . . Slashing Weapon 3 | . . . . 3 . Piercing Weapon 1 | . . . . . 1 Special Melee Weapon . | . . . . . . Unidentified Prototypes 4 | . . 3 . 1 . Parts Lost 24 | . . . . 2 22 Power 4 | . . . . . 4 Propulsion 13 | . . . . 1 12 Utility 7 | . . . . 1 6 Weapon . | . . . . . . Highest Loss Streak 5 | . . . . 1 5 To Critical Strikes 1 | . . . . . 1 Average Backups 4 | 1 2 7 3 4 3 Power . | . 1 1 1 1 . Propulsion 1 | . . . . 3 1 Utility 1 | . . 4 . . 1 Weapon 1 | . 1 1 1 . . Tool/Special . | . . . . . . Unused Backups 12 | . . 2 3 3 4 Power 1 | . . 1 . . . Propulsion 3 | . . . 1 2 . Utility 3 | . . . 1 . 2 Weapon 5 | . . 1 1 1 2 Tool/Special . | . . . . . . Average Slot Usage (%) 86 | . 85 94 92 94 73 Engine 6 | . 14 11 9 7 . Leg 10 | . 28 26 . . . Flight 20 | . . 2 20 37 32 Device 3 | . . 5 1 . 3 Storage 4 | . 14 10 . . . Processor 5 | . . 13 7 . . Hackware 17 | . . 3 36 31 20 Energy Gun 3 | . 14 5 . 6 . Ballistic Gun 8 | . 14 16 18 3 . Slashing Weapon 4 | . . . . 4 9 Peak Build Rating 53 | 6 6 26 32 44 53 Average Rating 28 | 4 6 18 28 40 39 On Entrance 18 | . 6 6 23 32 41 Avg Prop Armor Cover (%) 12 | . . 3 . . 13 Naked Turns . | . . . . . . Heaviest Build 24 | 13 13 24 11 16 15 Greatest Support 43 | 20 20 30 14 32 43 Greatest Overweight (x) 4 | 4 . 4 . . 4 Average Overweight (x) . | . . . . . . Largest Inventory Capacity 10 | 8 8 10 5 5 5 Average Capacity 6 | 7 8 8 5 5 5 Most Carried 10 | 2 2 10 5 5 5 Average Carried 4 | 1 2 7 3 4 3 Final Capacity 8 | 8 8 5 5 5 5 Final Carried 5 | 2 2 5 5 5 5 Class Distribution -------------------- 39% | Hacker-Sprinter 39% | Mutant 21% | Hacker-Mutant Dominant Class ---------------- Mutant | -10/Materials Mutant | -9/Materials Hacker-Mutant | -8/Materials Hacker-Sprinter | -7/Factory Hacker-Sprinter | -6/Factory Resources | -11 -10 -9 -8 -7 -6 ----------- Run | Yrd Mat Mat Mat Fac Fac Matter Collected 1209 | 206 . 477 59 . 467 Remotely . | . . . . . . Salvage Created 1222 | . . 796 76 . 350 Parts 84 | . . 57 7 . 20 Haulers Intercepted 4 | . . 3 . . 1 Recyclers Shooed 3 | . . 3 . . . Parts Field Recycled . | . . . . . . Retrieved Matter . | . . . . . . Parts Self-Destructed . | . . . . . . Prevented . | . . . . . . Parts Restored . | . . . . . . Kills | -11 -10 -9 -8 -7 -6 ------- Run | Yrd Mat Mat Mat Fac Fac Combat Hostiles Destroyed 28 | . . 17 3 . 8 Melee 8 | . . . . . 8 Guns 15 | . . 12 3 . . AOE 5 | . . 5 . . . Classes Destroyed 10 | . . 10 . . . Worker 1 | . . 1 . . . Tunneler 1 | . . 1 . . . Hauler 4 | . . 3 . . 1 Recycler 1 | . . 1 . . . Operator 2 | . . 1 . . 1 Watcher 2 | . . 1 1 . . Swarmer 17 | . . 7 3 . 7 Grunt 7 | . . 7 . . . Brawler 1 | . . 1 . . . Sentry 3 | . . 2 . . 1 Best Kill Streak 7 | . . 7 3 . 3 Combat Bots Only 4 | . . 4 3 . 3 Max Kills in Single Turn 3 | . . 3 1 . 1 Gunslinging . | . . . . . . Exploded 2 | . . 2 . . . Melee 1 | . . . . . 1 Uniques/NPCs Destroyed . | . . . . . . Combat | -11 -10 -9 -8 -7 -6 -------- Run | Yrd Mat Mat Mat Fac Fac Hostile Shots Fired 329 | . . 63 14 44 208 Missed 134 | . . 16 9 24 85 Hits 195 | . . 47 5 20 123 Melee 1 | . . . . 1 . Projectile 194 | . . 47 5 19 123 Critical Strikes 2 | . . . 1 . 1 Damage Taken 2660 | . . 630 52 276 1702 Core 1092 | . . 111 25 96 860 Absorbed by Shields . | . . . . . . Core Remaining (%) 90 | 100 100 72 95 86 . Volleys Fired 64 | . . 55 8 1 . Largest 2 | . . 2 2 2 . Hottest 92 | . . 70 46 92 . Shots Fired 125 | . . 107 16 2 . Gun 121 | . . 103 16 2 . Cannon . | . . . . . . Launcher 4 | . . 4 . . . Special . | . . . . . . Kinetic 95 | . . 78 16 1 . Thermal 24 | . . 23 . 1 . Explosive 4 | . . 4 . . . Electromagnetic 2 | . . 2 . . . Robot Hit Streak 10 | . . 10 4 1 . Robot Miss Streak 4 | . . 4 4 1 . Penetration Max . | . . . . . . Secondary Targets 3 | . . 2 1 . . Max Gunslinging Chain 1 | . . 1 1 . . Shots Hit Robots 88 | . . 64 7 1 16 Core Hits 50 | . . 32 6 . 12 Critical Kills 1 | . . 1 . . . Critical Parts Destroyed 2 | . . 2 . . . Critical Strikes 5 | . . 3 . . 2 Destroy 3 | . . 3 . . . Sever 1 | . . . . . 1 Impale 1 | . . . . . 1 Melee Attacks 64 | . . 1 . 11 52 Impact 1 | . . 1 . . . Slashing 60 | . . . . 11 49 Piercing 3 | . . . . . 3 Sneak Attacks 3 | . . . . . 3 Combat Hostiles . | . . . . . . Follow-up Attacks 3 | . . . . . 3 Damage Inflicted 2171 | . . 1298 112 16 745 Guns 952 | . . 824 112 16 . Cannons . | . . . . . . Explosions 474 | . . 474 . . . Melee 735 | . . . . . 735 Ramming 10 | . . . . . 10 Kinetic 763 | . . 635 112 16 . Thermal 206 | . . 206 . . . Explosive 433 | . . 433 . . . Electromagnetic 24 | . . 24 . . . Impact . | . . . . . . Slashing 662 | . . . . . 662 Piercing 73 | . . . . . 73 Highest Corruption 2 | . . . . 2 . Average Corruption 2 | . . . . 2 . Corruption Purged . | . . . . . . Corruption Blocked . | . . . . . . Effects 4 | . . . . 4 . Matter Fused 1 | . . . . 1 . Energy Discharges 2 | . . . . 2 . Data Loss (major) 1 | . . . . 1 . Overload Shots . | . . . . . . Overflow Damage 58 | . . 21 . . 37 Projectiles . | . . . . . . Explosions 21 | . . 21 . . . Melee 37 | . . . . . 37 Knockbacks . | . . . . . . Impact . | . . . . . . Kinetic . | . . . . . . Secondary . | . . . . . . Self-Inflicted Damage 119 | . . 115 . . 4 Shots 4 | . . 4 . . . Rammed 4 | . . . . . 4 Targets Rammed 4 | . . . . . 4 Kicked . | . . . . . . Crushed . | . . . . . . Highest Temperature 291 | . . 98 . 36 291 Average Temperature 55 | . . 32 . 6 92 Received Heat Transfer 627 | . . 195 18 75 339 Siege Activations . | . . . . . . Martial Activations . | . . . . . . Shielding Activations . | . . . . . . Robots Disrupted . | . . . . . . Combat Hostiles . | . . . . . . Robots Corrupted . | . . . . . . Combat Hostiles . | . . . . . . Parts Fried . | . . . . . . Impact Corruptions . | . . . . . . Robots Melted . | . . . . . . Combat Hostiles . | . . . . . . Parts Melted . | . . . . . . Heat Transferred 531 | . . 531 . . . Parts Sabotaged . | . . . . . . Parts Stolen . | . . . . . . Parts Stripped . | . . . . . . Power Chain Reactions 1 | . . 1 . . . Alert | -11 -10 -9 -8 -7 -6 ------- Run | Yrd Mat Mat Mat Fac Fac Maximum Alert Level 2 | . . 2 . 1 2 Low Security (%) 52 | 100 100 33 100 65 37 Level 1 44 | . . 65 . 34 54 Level 2 2 | . . . . . 8 Level 3 . | . . . . . . Level 4 . | . . . . . . Level 5 . | . . . . . . High Security . | . . . . . . Max Security . | . . . . . . Peak Influence 429 | . 9 403 175 373 429 Initial 118 | . . . 79 69 118 Average 189 | . 1 216 109 193 234 Influence Increases 1939 | . 9 591 164 499 676 Destroy 0b10 Robot/C 560 | . . 340 60 . 160 Destroy 0b10 Robot/NC 55 | . . 40 5 . 10 Destroy Leader 122 | . . 88 12 . 22 Successful Hack 94 | . 9 6 12 10 57 Disable Machine 75 | . . 45 . 30 . Destroy Structure 73 | . . 42 . 9 22 Partial Spotted 150 | . . . 30 60 60 Lose Combat Pursuer 810 | . . 30 45 390 345 Influence Decreases 1785 | . 9 402 200 410 764 Entered New Map 318 | . . . 110 84 124 Time Decay 867 | . 9 252 90 206 310 Search Patrol Dispatched 200 | . . . . 100 100 Lost Part 240 | . . . . 20 220 Lost Ally 10 | . . . . . 10 Purge Threat 150 | . . 150 . . . Squads Dispatched 18 | . . 3 2 6 7 Investigation 8 | . . . 1 2 5 Extermination 3 | . . . . 2 1 Reinforcement 7 | . . 3 1 2 1 Assault . | . . . . . . Garrison . | . . . . . . Intercept . | . . . . . . Searches Triggered 2 | . . . . 1 1 Construction Impeded . | . . . . . . Haulers Reinforced . | . . . . . . Active Scanning Responses . | . . . . . . Cargo Convoy Interrupts . | . . . . . . Stealth | -11 -10 -9 -8 -7 -6 --------- Run | Yrd Mat Mat Mat Fac Fac Distress Signals 5 | . . 2 1 2 . Communications Jammed . | . . . . . . Distress Signals . | . . . . . . Times Spotted 105 | . 1 24 15 26 39 Peak Tracking Total 10 | . 1 4 6 9 10 Tactical Retreats 23 | . . 1 1 10 11 ECM-based Alert Blocks 5 | . . . . . 5 Traps | -11 -10 -9 -8 -7 -6 ------- Run | Yrd Mat Mat Mat Fac Fac Traps Triggered 3 | . . . 1 2 . Indirectly . | . . . . . . Trap Hack Attempts . | . . . . . . Triggered . | . . . . . . Disarmed . | . . . . . . Reprogrammed . | . . . . . . Reused . | . . . . . . Traps Extracted . | . . . . . . Installed . | . . . . . . Triggered . | . . . . . . Machines | -11 -10 -9 -8 -7 -6 ---------- Run | Yrd Mat Mat Mat Fac Fac Machines Disabled 5 | . . 3 . 2 . Max in Single Turn 1 | . . 1 . 1 . Garrison Access 3 | . . . 1 2 . Machines Repaired . | . . . . . . Machines Dismantled . | . . . . . . Machines Sabotaged . | . . . . . . Overloaded Fab Kills . | . . . . . . Hacking | -11 -10 -9 -8 -7 -6 --------- Run | Yrd Mat Mat Mat Fac Fac Machines Accessed 33 | . 2 3 7 12 9 Terminals 20 | . 2 2 6 6 4 Fabricators 6 | . . . . 2 4 Repair Stations 1 | . . . . . 1 Recycling Units 1 | . . . . 1 . Scanalyzers 2 | . . 1 . 1 . Garrison Access 3 | . . . 1 2 . Total Hacks 84 | . 3 7 16 32 26 Successful 56 | . 1 3 15 23 14 Failed 26 | . 2 4 1 8 11 Catastrophic 8 | . 1 1 . 1 5 Database Lockouts 2 | . . . . 1 1 Manual 46 | . 1 5 9 18 13 Terminals 59 | . 3 6 15 21 14 Fabricators 14 | . . . . 4 10 Repair Stations 2 | . . . . . 2 Recycling Units 2 | . . . . 2 . Scanalyzers 3 | . . 1 . 2 . Garrison Access 4 | . . . 1 3 . Terminal Hacks 33 | . 1 2 13 12 5 Part Schematic 3 | . . . . 2 1 Level Access Points 4 | . 1 1 1 1 . Emergency Access Points 2 | . . . 1 1 . Machine Index 2 | . . . . 1 1 Terminal Index 1 | . . . . . 1 Scanalyzer Index 1 | . . . . 1 . Unreport Threat 1 | . . 1 . . . Locate Traps 4 | . . . 3 1 . Security Status 1 | . . . 1 . . Patrol Status 2 | . . . 2 . . Recall Investigation 2 | . . . 1 1 . Recall Reinforcements 3 | . . . 1 2 . Hauler Manifests 1 | . . . 1 . . Registered Components 2 | . . . 1 . 1 Registered Prototypes 2 | . . . . 1 1 Zone Layout 2 | . . . 1 1 . Fabricator Hacks 12 | . . . . 4 8 Network Status 1 | . . . . . 1 Load Schematic 5 | . . . . 2 3 Build 6 | . . . . 2 4 Repair Station Hacks 1 | . . . . . 1 Scan Component 1 | . . . . . 1 Recycling Unit Hacks 1 | . . . . 1 . Report Inventory 1 | . . . . 1 . Scanalyzer 2 | . . 1 . 1 . Retrieve Study 2 | . . 1 . 1 . Garrison Access Hacks 3 | . . . 1 2 . Seal Access 3 | . . . 1 2 . Unauthorized Hacks 4 | . . . 1 3 . Terminals 3 | . . . 1 2 . Assimilate 3 | . . . 1 2 . Fabricators . | . . . . . . Repair Stations . | . . . . . . Recycling Units 1 | . . . . 1 . Monitor 1 | . . . . 1 . Scanalyzers . | . . . . . . Garrison Access . | . . . . . . Data Cores Recovered . | . . . . . . Used . | . . . . . . Hacking Detections 27 | . 1 2 4 11 9 Full Trace Events 7 | . . . . 2 5 Feedback Events 2 | . . . . . 2 Hackware Fried 2 | . . . . . 2 Feedback Blocked . | . . . . . . Robot Schematics Acquired . | . . . . . . Robots Built . | . . . . . . Authchips . | . . . . . . Time . | . . . . . . Total Robot Build Rating . | . . . . . . Part Schematics Acquired 3 | . . . . 2 1 Parts Built 9 | . . . . 4 5 Authchips . | . . . . . . Time 385 | . . . . 84 301 Total Part Build Rating 47 | . . . . 16 31 Part Studies Acquired 2 | . . 1 . 1 . Parts Repaired . | . . . . . . Time . | . . . . . . Parts Recycled . | . . . . . . Recycled Matter . | . . . . . . Retrieved Matter . | . . . . . . Retrieved Components . | . . . . . . Parts Scanalyzed . | . . . . . . Part Schematics Acquired . | . . . . . . Parts Damaged . | . . . . . . Bothacking | -11 -10 -9 -8 -7 -6 ------------ Run | Yrd Mat Mat Mat Fac Fac Used RIF Installer . | . . . . . . Robots Hacked . | . . . . . . Non-combat . | . . . . . . Combat . | . . . . . . Robot Hacks Applied . | . . . . . . Relay Couplers Released . | . . . . . . Fabnet Peak Effective % . | . . . . . . Robots Rewired . | . . . . . . Allies Hacked . | . . . . . . Hacks Repelled . | . . . . . . Allies | -11 -10 -9 -8 -7 -6 -------- Run | Yrd Mat Mat Mat Fac Fac Total Allies 1 | . . . . 1 . Largest Group 1 | . . . . 1 1 Highest-Rated Group 10 | . . . . 10 10 Highest-Rated Ally 10 | . . . . 10 10 Total Orders . | . . . . . . Ally Attacks . | . . . . . . Total Damage . | . . . . . . Kills . | . . . . . . Allies Corrupted . | . . . . . . Allies Melted . | . . . . . . Intel | -11 -10 -9 -8 -7 -6 ------- Run | Yrd Mat Mat Mat Fac Fac Active Infowar (turns) 643 | . . 319 189 52 83 Optics 215 | . . . 163 52 . Sensors 345 | . . 319 26 . . Triangulation 61 | . . . . . 61 ECM 26 | . . . . . 26 Robot Analysis Total . | . . . . . . Derelict Logs Recovered . | . . . . . . Drone Launches . | . . . . . . Drone Recoveries . | . . . . . . Exploration | -11 -10 -9 -8 -7 -6 ------------- Run | Yrd Mat Mat Mat Fac Fac Turns Passed 2174 | 57 138 679 191 420 689 Spaces Moved 3274 | 33 116 405 412 1183 1125 Core 69 | 12 . . . . 57 Treads 16 | . . 16 . . . Legs 484 | 21 116 347 . . . Wheels . | . . . . . . Hover . | . . . . . . Flight 2705 | . . 42 412 1183 1068 Fastest Speed 18 | 50 120 37 32 24 18 Average Speed 43 | 140 120 108 35 25 31 Slowest Speed 320 | 250 120 320 37 27 250 Overloaded Moves . | . . . . . . Propulsion Burnouts . | . . . . . . Robots Hopped 21 | . . 1 4 6 10 Potential Cave-ins . | . . . . . . Cave-ins Triggered . | . . . . . . Exploration Rate (%) 28 | 3 26 36 49 33 21 Regions Visited 5 Branch Regions . Pre-discovered Areas . | . . . . . . Known Exits Taken 4 | . 1 1 1 1 . Unknown Exits Taken 1 | 1 . . . . . Scrap Searched . | . . . . . . Spaces Dug 32 | . . 1 . 9 22 Terrain Destroyed 78 | . . 47 . 9 22 Melee 32 | . . 1 . 9 22 Projectile . | . . . . . . AOE 46 | . . 46 . . . Terrain Rammed . | . . . . . . Walls Destroyed . | . . . . . . Machines Disabled . | . . . . . . Actions | -11 -10 -9 -8 -7 -6 --------- Run | Yrd Mat Mat Mat Fac Fac Total 3766 | 40 115 537 435 1279 1360 Wait 224 | . . 16 . 60 148 Move 3229 | 32 115 402 403 1171 1106 Hop 19 | . . 1 4 5 9 Pick Up 37 | 2 . 13 7 8 7 Fast Attach 37 | 6 . 13 2 4 12 Attach 13 | . . 2 2 3 6 Detach 2 | . . . . . 2 Swap 33 | . . 12 2 7 12 Drop 46 | . . 22 7 9 8 Fire 64 | . . 55 8 1 . Melee 58 | . . 1 . 11 46 Ram 4 | . . . . . 4 Kick . | . . . . . . Crush . | . . . . . . Escape Stasis . | . . . . . . Rewire . | . . . . . . Trap . | . . . . . . Miscellaneous . | . . . . . . Route ------- -11/Scrapyard -10/Materials (discovered 4 exits: *Mat x3 / [*Min]) -9/Materials (discovered 4 exits: *Mat x3 / *Min) -8/Materials (discovered 4 exits: *Fac x3 / [*Sto]) -7/Factory (discovered 5 exits: *Fac x4 / [*Low]) -6/Factory (discovered 2 exits: [*Low x2]) History --------- Turn | Location | Event 26 | -11/Scrapyard | Discovered new exit (range 16) 58 | -11/Scrapyard | Entered Materials 58 | -10/Materials | Discovered new exit (range 15) 98 | -10/Materials | Identified exit to Materials 196 | -10/Materials | Entered another Materials area 196 | -9/Materials | Evolved 2 slots: Propulsion x1, Utility x1 196 | -9/Materials | Discovered new exit (range 7) 229 | -9/Materials | Identified exit to Mines 303 | -9/Materials | Build established: Mutant 867 | -9/Materials | Identified exit to Materials 875 | -9/Materials | Entered another Materials area 875 | -8/Materials | Evolved 2 slots: Utility x2 906 | -8/Materials | Identified exit to Factory 958 | -8/Materials | Discovered new exit (range 11) 1066 | -8/Materials | Entered Factory 1066 | -7/Factory | Evolved 2 slots: Propulsion x2 1170 | -7/Factory | Fabricated Xenon Bombardment Thruster? 1209 | -7/Factory | Identified exit to Factory 1214 | -7/Factory | Central database locked down 1301 | -7/Factory | Fabricated Xenon Bombardment Thruster? 1357 | -7/Factory | Build established: Hacker-Sprinter 1402 | -7/Factory | Discovered new exit (range 5) 1466 | -7/Factory | Search patrols dispatched 1486 | -7/Factory | Entered another Factory area 1486 | -6/Factory | Accompanied by 1 ally 1486 | -6/Factory | Evolved 2 slots: Propulsion x2 1664 | -6/Factory | Central database locked down 1669 | -6/Factory | Hacking Suite fried by hacking feedback 1674 | -6/Factory | Hacking Suite fried by hacking feedback 1677 | -6/Factory | Discovered new exit (range 7) 1698 | -6/Factory | Fabricated Imp. Hacking Suite? 1712 | -6/Factory | Fabricated Imp. Hacking Suite? 1734 | -6/Factory | Discovered new exit (range 11) 1830 | -6/Factory | Lost 3 parts (3n) 1831 | -6/Factory | Fabricated Imp. Hacking Suite? 1836 | -6/Factory | Search patrols dispatched 1905 | -6/Factory | Lost 5 parts (2p2n1u) 1910 | -6/Factory | Fabricated Enh. Force Lance? 2006 | -6/Factory | Lost 3 parts (1p2n) 2102 | -6/Factory | Lost 4 parts (2n2u) 2102 | -6/Factory | Core integrity fell below 50% 2151 | -6/Factory | Core integrity fell below 20% 2175 | -6/Factory | Destroyed by G-50 Soldier with Heavy Laser Last Messages --------------- 02050_ Acquired 29 matter. 02055_ K-01 Serf collects debris. 02058_ Imp. Flight Unit destroyed. 02064_ Hacking Suite destroyed. 02064_ Imp. Flight Unit destroyed. 02066_ Dropped Power Amplifier. 02067_ Dropped Fusion Compressor. 02071_ Imp. Hacking Suite destroyed. 02078_ Y-54 Guardian suffers critical hit (Impale). 02078_ Y-54 Guardian destroyed. 02082_ Acquired 57 matter. 02088_ Acquired Fusion Compressor. 02095_ Dropped Fusion Compressor. 02104_ Slammed into G-50 Soldier. 02107_ Enh. Force Lance broken. 02107_ Destabilizing: Short circuit. 02143_ Acquired Imp. Hacking Suite. 02172_ Imp. Hacking Suite destroyed. 02173_ Slammed into K-01 Serf. Map ----- +----------------------------------------------------+ | ?????????????????????????????# "F "" """" """" | | ?????????????????????????????# """"" """" """" | | ?????????????????????????????# """"" | | ????????????????????########## ?? | | ????????????????????? # ? | | ?????????????????????"" """ # ############### | | ????????????????????""" """ # #???????????# " | | ????????????????# """ """ # #???????????# " | | ????????????????# # #???????????# " | | ????????????????# """ """ + #???????????# | | ????????????????????""" """ # #????+##+???# | | ????????????????????""" """ # #???# ??+ | | ???????????????????? # #???# #??# | | ???????????????????? # #???# #??# | | ???????????????????? # #???# ###### | | ??????????????????? ! # #???# # | | ???????????????????########### #???# # """ | | ?????????????????????????????# #???# # """ | | ?????????????????????????????# #???# # "S | | ?????????????????????????????# #???# # """ | | ?????????????????????????????# #???# # "" | | ?????????????????????????????# #???# # | | ??????????????????##?????????# ##### # | | ?????????? # ### ???????# # | | ?????????? ###### g # | | ???????????" * < k @ gg # ! | | ?????????? k ########+#+##+##+## # | | ?????????? ##### ??#! ## ###### | | ??????????????????##????# """ """ ## # | | ????????????????????????# """ """ ! ## / """" | | ????????????????????????# """ """ #### ""R" | | ????????????????????????# "" #??# "" " | | ????????????????????????# " """ """ #??# | | ????????????????????????# "F """ """ #??# | | ????????????????????????# "" """ """ #??# | | ????????????????????????# #??###### | | ????????????????????????##################???????? | | ?????????????????????????????????????????????????? | | ?????????????????????????????????????????????????? | | ?????????????????????????????????????????????????? | | ?????????????????????????????????????????????????? | | ?????????????????????????????????????????????????? | | ?????????????????????????????????????????????????? | | ?????????????????????????????????????????????????? | | ?????????????????????????????????????????????????? | | ?????????????????????????????????????????????????? | | ?????????????????????????????????????????????????? | | ?????????????????????????????????????????????????? | | ?????????????????????????????????????????????????? | | ?????????????????????????????????????????????????? | +----------------------------------------------------+ Best States ------------- Heat Dissipation 37 Energy Generation 29 Energy Capacity 280 Matter Stores 296 Matter Capacity 300 Sight Range 18 Robot Scan Range 15 Terrain Scan Density 10 ECM Strength 2 Power Amplification 20 Evasion (%) 66 Target Analysis 7 Recoil Reduction 1 Offensive Hacking 50 Item Schematics ----------------- Imp. VTOL Module | -7/Factory | Hacked Xenon Bombardment Thruster | -7/Factory | Hacked Imp. Hacking Suite | -6/Factory | Hacked Robot Schematics ------------------ None Fabricated ------------ Xenon Bombardment Thruster | x2 | -7/Factory Xenon Bombardment Thruster | x2 | -7/Factory Imp. Hacking Suite | x1 | -6/Factory Imp. Hacking Suite | x1 | -6/Factory Imp. Hacking Suite | x1 | -6/Factory Enh. Force Lance | x2 | -6/Factory | Preloaded Repaired ---------- Nothing Studied --------- Aluminum Leg | -9/Materials | Hacked Xenon Bombardment Thruster | -7/Factory | Hacked Alien Tech Used ----------------- None Achievements -------------- None Challenges ------------ None Game ------ Seed RapidGravmagShifter Manual? 0 Play Time 01:14:04 Cumulative 79.1 hours Start 2026.02.14 @ 21:02:26 End 2026.02.14 @ 22:15:21 Sessions 1 Manual Loads 0 Difficulty Rogue Special Mode None Game No. 150 Rogue 150 Adventurer 0 Explorer 0 Win Type - Total 1 Types 1/0/0/0/0/0/0/0/0/0 Lore% 25 Gallery% 35 Achievement% 25 Wizard Run 0 Options --------- Layout 1 ASCII 0 Keyboard 0 Movement Mouse Keybinds 0 Fullscreen 2 Font 20/X11 Map View 50x35 Zoom Use 0% Tactical HUD 1 Map Filters NONE Filters NONE Steam 1 RUN: 98e0b0d2-ae5f-45bb-969a-a3ff4ed0d74f